bitfinex/quotes_ETHUSD_20250123
["timestamp","ask_amount","ask_price","bid_price","bid_amount"]
[1737657756589,3.0795,3247.3,3246.8,0.797]
[1737657756792,3.69774351,3247.6,3246.9,0.797]
[1737657756987,3.69774351,3247.6,3247.1,0.797]
[1737657757329,3.07941,3247.4,3247.2,0.06624175]
[1737657757490,3.07948,3247.3,3247.2,0.06624175]
[1737657757686,3.07941,3247.4,3247.2,0.06624175]
[1737657758224,3.07948,3247.3,3247.2,0.06624175]
[1737657758622,3.07948,3247.3,3246.7,0.8275]
[1737657758923,3.07948,3247.3,3246.7,1.218256]
[1737657759137,0.61855351,3247.6,3246.8,0.06661599]
[1737657759322,3.69780351,3247.6,3246.9,0.79]
[1737657759497,3.0794,3247.4,3246.9,0.79]
[1737657759710,3.0794,3247.4,3247.0,0.06640865]
[1737657765026,3.07963,3247.2,3247.0,0.06640865]
[1737657765329,3.07967,3247.1,3247.0,0.06640865]
[1737657766834,3.07996,3246.8,3246.6,0.8068]
[1737657767821,3.07996,3246.8,3245.3,0.1657653]
[1737657767822,6.70923817,3246.7,3245.3,0.1657653]
[1737657768135,5.9631715,3245.4,3245.3,0.1657653]
[1737657768329,10.36752755,3245.4,3245.3,0.1657653]
[1737657768530,10.32900552,3245.4,3245.3,0.1657653]
[1737657768837,10.32900552,3245.4,3244.7,0.7699]
[1737657768838,3.08166,3245.0,3244.7,0.7699]
[1737657769147,3.08166,3245.0,3244.3,0.7699]
[1737657769148,3.86772678,3245.0,3244.3,0.7699]
[1737657769306,3.82920221,3245.0,3244.3,0.7699]
[1737657769509,6.82920221,3245.0,3244.3,0.7699]
[1737657770096,8.23326267,3245.0,3244.9,6.67e-06]
[1737657770555,3.08289,3243.7,3243.6,3.21289538]
[1737657770920,3.08289,3243.7,3243.6,3.26643695]
[1737657771922,3.08289,3243.7,3243.6,3.21289538]
[1737657772265,3.0828,3243.8,3242.6,0.7614]
[1737657772485,3.08348,3243.1,3242.7,0.37614]
[1737657772825,3.08329,3243.3,3242.6,0.7614]
[1737657773064,3.08329,3243.3,3242.7,0.05478818]
[1737657773261,3.0834,3243.2,3242.7,0.05478818]
[1737657773461,3.0831,3243.5,3242.7,0.05478818]
[1737657773921,3.08291,3243.7,3242.9,3.08364]
[1737657774118,3.08256,3244.1,3243.1,0.8002]
[1737657774357,3.08262,3244.0,3243.3,3.08322]
[1737657774563,0.61951699,3244.3,3243.4,35.0]
[1737657774873,3.08271,3243.9,3243.4,35.05447858]
[1737657776078,3.08297,3243.7,3243.4,35.05447858]
[1737657776425,3.08271,3243.9,3243.4,35.05447858]
[1737657777428,3.08252,3244.1,3243.4,35.05447858]
[1737657777626,3.08282,3243.8,3243.4,35.05447858]
[1737657778462,3.08282,3243.8,3243.4,0.05447858]
[1737657778764,3.08289,3243.8,3243.1,0.8002]
[1737657778969,3.08289,3243.8,3243.5,0.05441333]
[1737657779259,3.08289,3243.8,3243.6,0.05437219]
[1737657779464,3.60309854,3244.5,3242.8,3.08373]
[1737657779465,0.99925252,3244.9,3243.7,0.7767]
[1737657779628,0.99925252,3244.9,3244.1,3.0825]
[1737657779629,3.08192,3244.8,3244.1,3.0825]
[1737657780164,0.99925252,3244.9,3244.2,0.84938161]
[1737657780165,3.08232,3244.3,3244.2,0.84938161]
[1737657781280,3.0821,3244.6,3244.2,0.84938161]
[1737657781776,3.08185,3244.8,3244.2,0.84938161]
[1737657781973,3.082,3244.7,3244.2,0.84938161]
[1737657782149,3.08185,3244.8,3244.2,0.84938161]
[1737657782873,0.99925252,3244.9,3244.2,0.84938161]
[1737657783072,4.08108252,3244.9,3244.2,3.93177161]
[1737657783372,4.08108252,3244.9,3244.3,3.08232]
[1737657783757,4.08108252,3244.9,3244.4,0.05294543]
[1737657784275,0.99925252,3244.9,3244.4,3.13514543]
[1737657784466,0.99925252,3244.9,3244.4,0.75410197]
[1737657784776,0.99925252,3244.9,3244.4,3.83626197]
[1737657785145,0.99925252,3244.9,3244.5,3.0821]
[1737657785452,0.99925252,3244.9,3244.6,0.0528632]
[1737657785854,0.99925252,3244.9,3244.6,3.1348432]
[1737657786870,0.99925252,3244.9,3244.6,3.82665917]
[1737657787057,0.99925252,3244.9,3244.7,0.7739]
[1737657787255,0.99925252,3244.9,3244.8,0.05278099]
[1737657787466,0.99925252,3244.9,3244.7,0.7739]
[1737657787787,0.99925252,3244.9,3244.8,0.05278099]
[1737657787988,0.99925252,3244.9,3244.8,3.13463099]
[1737657788157,0.99925252,3244.9,3244.8,3.08185]
[1737657788345,0.99925252,3244.9,3244.8,3.13445547]
[1737657788855,3.08102,3245.7,3245.1,3.08155]
[1737657789044,3.08094,3245.8,3245.1,3.08155]
[1737657789241,3.08135,3245.4,3245.2,0.05244108]
[1737657789458,3.08135,3245.4,3244.8,3.08182]
[1737657789659,3.08135,3245.4,3244.9,0.0524702]
[1737657790373,3.08152,3245.2,3244.9,0.0524702]
[1737657790574,3.08166,3245.0,3244.9,0.0524702]
[1737657790756,3.08208,3244.6,3244.3,0.7973]
[1737657791083,3.08208,3244.6,3244.4,0.05266718]
[1737657791256,3.08185,3244.8,3244.4,0.05266718]
[1737657792374,3.08195,3244.7,3244.4,0.05266718]
[1737657792676,3.08185,3244.8,3244.4,0.05266718]
[1737657792677,3.08204,3244.6,3244.4,0.05266718]
[1737657793684,3.08213,3244.5,3244.4,0.05266718]
[1737657793892,3.08204,3244.6,3244.4,0.05266718]
[1737657794070,3.08213,3244.5,3244.4,0.05266718]
[1737657794271,6.00254973,3244.5,3244.4,0.05266718]
[1737657794443,2.92042843,3244.5,3243.7,0.8069]
[1737657794650,3.0828,3243.8,3243.7,0.8069]
[1737657794842,3.08267,3244.0,3243.7,0.85256662]
[1737657795062,3.08259,3244.1,3243.7,0.85256662]
[1737657795285,3.08271,3243.9,3243.7,0.85256662]
[1737657796458,6.16516,3244.1,3243.7,0.85256662]
[1737657796662,3.08255,3244.1,3243.7,0.85256662]
[1737657797360,6.16516,3244.1,3243.7,0.85256662]
[1737657797566,3.08263,3244.0,3243.7,0.85256662]
[1737657797791,6.29949793,3244.8,3243.7,0.85256662]
[1737657797792,3.08233,3244.3,3243.7,3.93540662]
[1737657798158,3.08233,3244.3,3243.7,7.01821662]
[1737657798360,0.60300732,3244.2,3243.7,7.01821662]
[1737657798582,0.60300732,3244.2,3243.7,3.93537662]
[1737657799092,3.08254,3244.1,3243.7,0.85256662]
[1737657799452,3.70122983,3244.5,3243.7,0.85256662]
[1737657799655,3.08234,3244.3,3243.7,3.93538662]
[1737657800292,3.08234,3244.3,3243.8,3.08279]
[1737657800471,3.08229,3244.4,3243.9,0.04564137]
[1737657800670,3.08233,3244.3,3243.9,0.04564137]
[1737657801077,3.08261,3244.0,3243.7,0.8069]
[1737657801277,3.12126596,3243.9,3243.8,0.04571413]
[1737657801477,3.08273,3243.9,3243.7,0.8069]
[1737657801793,3.0828,3243.8,3243.7,0.8069]
[1737657801992,3.08318,3243.4,3243.0,0.7931]
[1737657802195,3.08328,3243.3,3243.0,0.7931]
[1737657802874,6.16645,3243.4,3243.0,0.7931]
[1737657803796,3.08333,3243.3,3243.0,0.7931]
[1737657804591,3.71511046,3243.6,3243.0,0.7931]
[1737657805092,0.63207046,3243.6,3243.0,0.7931]
[1737657805398,0.63207046,3243.6,3243.0,3.87658]
[1737657805704,0.63207046,3243.6,3243.0,0.7931]
[1737657806883,0.63207046,3243.6,3242.1,0.8002]
[1737657807075,2.8818915,3243.0,3242.1,0.8002]
[1737657807392,3.12226359,3242.9,3242.1,0.8002]
[1737657808170,0.41760643,3243.5,3242.4,3.08404]
[1737657808373,3.08324,3243.4,3242.5,3.90643]
[1737657808575,3.0832,3243.4,3242.5,0.8224]
[1737657808803,3.08329,3243.3,3242.5,0.8224]
[1737657808962,3.08315,3243.5,3242.5,3.90642]
[1737657809163,3.08315,3243.5,3242.6,3.08391]
[1737657809565,3.0832,3243.4,3242.6,3.08391]
[1737657810011,0.63207046,3243.6,3242.5,0.8224]
[1737657810218,2.8818915,3243.2,3242.5,0.8224]
[1737657810380,3.08348,3243.1,3242.5,0.8224]
[1737657810587,3.08356,3243.0,3242.6,0.04446013]
[1737657810780,3.08354,3243.1,3242.6,0.04446013]
[1737657810980,3.08356,3243.0,3242.6,0.04446013]
[1737657811402,3.08354,3243.1,3242.6,0.04446013]
[1737657811807,3.08364,3243.0,3242.6,0.04446013]
[1737657812068,3.08354,3243.1,3242.6,0.04446013]
[1737657812291,3.0833,3243.3,3242.6,0.04446013]
[1737657812478,3.08355,3243.1,3242.6,0.04446013]
[1737657812693,2.8818915,3243.5,3242.6,3.12837013]
[1737657812895,3.08348,3243.1,3242.6,0.04446013]
[1737657813096,3.08328,3243.3,3242.6,0.04446013]
[1737657813263,2.8818915,3242.9,3242.6,0.04446013]
[1737657813626,3.08382,3242.8,3242.6,0.04446013]
[1737657813973,3.0836,3243.0,3242.6,0.04446013]
[1737657814290,3.08339,3243.2,3242.6,0.04446013]
[1737657814822,3.08352,3243.1,3242.6,0.04446013]
[1737657815172,3.08339,3243.2,3242.7,3.08383]
[1737657815374,6.79814046,3243.6,3242.7,0.74867001]
[1737657815692,3.08334,3243.3,3242.7,3.08378]
[1737657815894,3.08334,3243.3,3242.8,0.04516184]
[1737657816634,3.08324,3243.4,3242.8,0.04516184]
[1737657817178,3.08324,3243.4,3242.8,3.12890184]
[1737657817821,3.08328,3243.3,3242.8,3.12891184]
[1737657818317,3.08338,3243.2,3242.8,0.04516184]
[1737657819016,3.08326,3243.4,3242.8,0.04516184]
[1737657819315,3.08326,3243.4,3242.8,3.12889184]
[1737657820011,3.08295,3243.7,3242.9,3.8683]
[1737657820215,6.16593,3243.7,3243.1,3.08346]
[1737657820375,3.08295,3243.7,3243.1,6.16686]
[1737657820575,3.08295,3243.7,3243.2,3.12835721]
[1737657821039,3.08282,3243.8,3243.3,0.7847]
[1737657821397,3.08282,3243.8,3243.4,0.04482064]
[1737657822198,3.08295,3243.7,3243.4,0.04482064]
[1737657822830,3.08282,3243.8,3243.4,0.04482064]
[1737657823430,0.61847465,3243.9,3243.4,3.12793064]
[1737657823696,3.08281,3243.8,3243.4,0.04482064]
[1737657824137,3.08289,3243.7,3243.4,0.04482064]
[1737657824717,3.08308,3243.5,3243.4,0.04482064]
[1737657826221,3.08289,3243.7,3243.4,0.04482064]
[1737657826628,3.08306,3243.6,3243.4,0.04482064]
[1737657827132,5.9646315,3243.9,3243.4,0.04482064]
[1737657827326,3.08294,3243.7,3243.4,0.04482064]
[1737657827520,3.08284,3243.8,3243.4,0.04482064]
[1737657828095,3.08308,3243.5,3243.4,0.04482064]
[1737657829703,3.08308,3243.5,3243.0,3.08354]
[1737657830042,3.08308,3243.5,3243.4,0.04292865]
[1737657830250,3.08308,3243.5,3243.0,3.08354]
[1737657830545,3.083,3243.6,3243.1,3.08345]
[1737657830744,2.8818915,3243.9,3243.1,0.04309013]
[1737657830955,3.08314,3243.5,3242.8,3.8403]
[1737657831102,3.08314,3243.5,3243.2,0.04308657]
[1737657831308,3.08294,3243.7,3243.0,3.08348]
[1737657831618,3.083,3243.6,3243.3,0.04304542]
[1737657831961,3.083,3243.6,3243.0,3.08351]
[1737657832108,3.083,3243.6,3243.4,0.04300427]
[1737657832305,3.083,3243.6,3243.1,3.08346]
[1737657832559,3.08315,3243.5,3243.0,3.08355]
[1737657833752,3.12169101,3243.5,3242.8,0.7566]
[1737657834050,3.08329,3243.3,3242.8,3.84034]
[1737657834348,3.08357,3243.0,3242.4,3.08408]
[1737657834513,3.08356,3243.0,3242.4,3.08408]
[1737657834856,6.16739,3242.9,3242.2,3.08427]
[1737657835005,3.12231926,3242.8,3242.1,3.86566]
[1737657835210,3.12231926,3242.8,3242.2,3.08432]
[1737657835548,3.08367,3242.9,3242.1,3.86571]
[1737657835747,3.08391,3242.7,3242.1,3.86571]
[1737657835955,2.8818915,3243.4,3242.1,1.18444753]
[1737657836103,0.62437741,3243.2,3242.1,0.7813]
[1737657836308,3.08363,3243.0,3242.4,3.08407]
[1737657836762,3.08363,3243.0,3242.3,3.08415]
[1737657836763,3.08363,3243.0,3242.5,3.08401]
[1737657836923,3.08322,3243.4,3242.7,0.7813]
[1737657837128,3.08329,3243.3,3242.7,3.86509]
[1737657837457,3.08322,3243.4,3242.7,6.94885]
[1737657837605,3.08322,3243.4,3242.7,3.86506]
[1737657837810,3.08306,3243.6,3242.7,3.86514]
[1737657838048,3.08314,3243.5,3242.9,3.08359]
[1737657838249,3.08306,3243.6,3242.9,3.08359]
[1737657838448,3.08303,3243.6,3243.0,3.08356]
[1737657839028,3.08303,3243.6,3243.1,0.7696]
[1737657839237,3.08284,3243.8,3243.2,0.03083378]
[1737657839428,3.08243,3244.2,3243.3,0.7696]
[1737657839626,3.08277,3243.9,3243.3,0.7696]
[1737657840166,3.08277,3243.9,3243.4,3.12453084]
[1737657840457,3.08268,3244.0,3243.4,3.12453084]
[1737657840711,3.08256,3244.1,3243.4,3.12453084]
[1737657840871,6.58039283,3244.3,3243.6,3.08298]
[1737657841018,6.58039283,3244.3,3243.8,0.8059]
[1737657841466,3.08217,3244.5,3243.9,3.12380519]
[1737657841858,3.08217,3244.5,3243.9,3.12379519]
[1737657842034,3.08199,3244.7,3244.0,3.0826]
[1737657842238,6.16401,3244.7,3243.9,3.15461992]
[1737657842553,3.08161,3245.1,3243.9,3.15461992]
[1737657842554,5.9634015,3245.2,3244.4,0.7719]
[1737657842725,5.9634015,3245.2,3244.6,3.08203]
[1737657843062,3.0813,3245.4,3244.8,0.7719]
[1737657843252,2.8818915,3245.5,3244.9,3.08166]
[1737657843565,2.8818915,3245.5,3244.9,3.12206087]
[1737657843933,5.9631515,3245.5,3244.9,3.12206087]
[1737657844740,0.61654144,3245.7,3244.9,3.12206087]
[1737657844969,3.08082,3245.9,3245.2,3.08142]
[1737657845173,2.8818915,3245.5,3245.0,0.80080664]
[1737657845399,3.1197983,3245.4,3245.3,0.0402367]
[1737657845600,3.1197983,3245.4,3245.0,0.7607]
[1737657845779,3.0814,3245.3,3245.0,0.7607]
[1737657845945,3.08146,3245.3,3244.5,3.84282]
[1737657846140,3.08157,3245.1,3244.5,1.453202]
[1737657846385,3.08157,3245.1,3244.5,4.535322]
[1737657846795,3.08199,3244.7,3244.2,0.7758]
[1737657847299,5.9636715,3244.9,3244.3,3.08232]
[1737657849992,2.8818915,3245.2,3244.2,0.7758]
[1737657850297,5.9634415,3245.2,3244.2,0.7758]
[1737657850597,5.9634415,3245.2,3244.2,3.85816]
[1737657850598,3.08158,3245.1,3244.2,3.85816]
[1737657850795,3.08158,3245.1,3244.4,3.08217]
[1737657851588,2.8818915,3245.2,3244.4,3.08217]
[1737657851759,2.8818915,3245.2,3244.6,3.08197]
[1737657851967,2.8818915,3245.2,3244.8,0.782]
[1737657852175,2.8818915,3245.2,3244.8,3.86384]
[1737657852375,2.8818915,3245.2,3244.8,0.782]
[1737657854602,3.69253038,3245.4,3244.8,0.782]
[1737657854808,3.08146,3245.3,3244.8,0.782]
[1737657855000,3.08149,3245.2,3244.8,0.782]
[1737657855207,3.08149,3245.2,3243.8,35.0]
[1737657855208,3.08203,3244.7,3244.3,0.813]
[1737657855763,5.9636615,3244.9,3244.3,0.813]
[1737657856892,3.0819,3244.8,3244.3,0.813]
[1737657857276,3.08201,3244.7,3244.3,0.813]
[1737657857459,3.12053712,3244.7,3244.3,0.813]
[1737657858306,3.08201,3244.7,3244.4,0.03750515]
[1737657859010,3.08213,3244.5,3244.4,0.03750515]
[1737657859213,3.08213,3244.5,3244.0,0.783]
[1737657859377,3.08213,3244.5,3244.4,0.03750515]
[1737657859564,3.08213,3244.5,3244.0,0.783]
[1737657859766,3.08213,3244.5,3244.1,0.03762849]
[1737657860169,5.9639515,3244.6,3244.1,0.03762849]
[1737657860497,3.08206,3244.6,3244.1,0.03762849]
[1737657860812,3.12068073,3244.5,3244.1,0.03762849]
[1737657860962,0.03853123,3244.4,3244.1,0.03762849]
[1737657861164,3.08231,3244.4,3244.1,0.03762849]
[1737657861382,3.08231,3244.4,3243.8,3.08279]
[1737657861713,3.08231,3244.4,3243.9,0.03835145]
[1737657862405,3.08236,3244.3,3243.9,0.03835145]
[1737657862710,3.08236,3244.3,3243.7,3.85474]
[1737657862879,3.08236,3244.3,3244.0,0.03831033]
[1737657863077,3.08236,3244.3,3243.8,3.08278]
[1737657863333,3.08236,3244.3,3244.1,0.03826921]
[1737657863542,3.08213,3244.5,3243.8,3.08278]
[1737657863734,3.08213,3244.5,3244.2,0.0382281]
[1737657864031,2.8818915,3244.6,3244.3,0.03818698]
[1737657864235,3.08221,3244.5,3244.3,0.03818698]
[1737657864552,3.08221,3244.5,3243.9,3.08268]
[1737657864737,3.08221,3244.5,3244.4,0.03823988]
[1737657865254,3.08221,3244.5,3242.5,3.08402]
[1737657865255,3.08276,3243.9,3243.3,0.8175]
[1737657865536,3.08296,3243.7,3243.4,0.03745925]
[1737657866302,3.083,3243.6,3243.4,0.03745925]
[1737657866824,3.08308,3243.5,3243.4,0.03745925]
[1737657867030,3.08308,3243.5,3243.0,3.89374]
[1737657867231,3.08308,3243.5,3243.4,0.03757038]
[1737657867433,3.08308,3243.5,3243.0,3.89374]
[1737657867434,5.9649015,3243.6,3243.0,3.89374]
[1737657867607,5.9649015,3243.6,3243.4,0.03757038]
[1737657867932,6.59196572,3243.6,3243.5,0.03761046]
[1737657868294,6.59196572,3243.6,3243.1,3.08346]
[1737657868831,6.59196572,3243.6,3243.2,0.03773387]
[1737657869231,6.59196572,3243.6,3243.1,3.08346]
[1737657869395,6.59196572,3243.6,3243.3,0.03769273]
[1737657869595,6.59196572,3243.6,3243.1,3.08346]
[1737657869889,6.59196572,3243.6,3243.2,0.03773387]
[1737657870093,0.62706422,3243.6,3243.1,3.08346]
[1737657870325,3.0828,3243.8,3243.2,0.03773387]
[1737657870532,3.0828,3243.8,3243.2,3.12107387]
[1737657871113,3.68803076,3243.8,3243.2,3.12107387]
[1737657871436,0.60523076,3243.8,3243.4,3.08312]
[1737657871597,0.60523076,3243.8,3243.4,6.16624]
[1737657871796,0.60523076,3243.8,3243.5,0.03729826]
[1737657871997,0.60523076,3243.8,3243.5,3.12036826]
[1737657872422,0.60523076,3243.8,3243.5,0.03729826]
[1737657874344,5.9643615,3244.2,3243.5,3.43239809]
[1737657874564,3.08257,3244.1,3243.6,0.7601]
[1737657874835,0.63164321,3244.0,3243.7,0.03772027]
[1737657875198,3.71428321,3244.0,3243.7,0.03772027]
[1737657876304,3.08264,3244.0,3243.7,0.03772027]
[1737657879521,3.70196051,3244.1,3243.7,0.03772027]
[1737657880046,2.8818915,3244.2,3243.8,3.08277]
[1737657880366,6.58277643,3244.1,3243.9,0.0366143]
[1737657880522,6.58277643,3244.1,3243.6,0.7601]
[1737657880523,3.50017643,3244.1,3243.6,0.7601]
[1737657880723,3.50017643,3244.1,3243.7,0.03669657]
[1737657880962,3.08263,3244.0,3243.7,0.03669657]
[1737657881523,3.50017643,3244.1,3243.7,0.03669657]
[1737657882249,3.08257,3244.1,3243.7,0.03669657]
[1737657882445,3.29949793,3244.5,3243.7,0.73297823]
[1737657882773,3.08155,3245.2,3244.7,3.08194]
[1737657883120,2.8818915,3245.1,3244.8,0.03560079]
[1737657883388,3.08168,3245.0,3244.4,3.84235]
[1737657883517,2.8818915,3245.1,3244.5,3.11788708]
[1737657883720,3.08166,3245.0,3244.5,0.03578708]
[1737657883922,3.08166,3245.0,3244.5,0.42360079]
[1737657884356,3.08204,3244.6,3244.5,0.03578708]
[1737657885068,3.08224,3244.4,3244.1,0.7762]
[1737657885255,5.9641815,3244.4,3243.9,0.8085]
[1737657885641,3.08229,3244.4,3243.9,0.8085]
[1737657886157,3.08213,3244.5,3243.9,3.89118]
[1737657886360,3.08213,3244.5,3243.9,4.46060038]
[1737657886740,3.08213,3244.5,3243.9,1.37792038]
[1737657886939,3.08213,3244.5,3244.0,3.08259]
[1737657887341,3.08213,3244.5,3243.9,4.46062038]
[1737657888277,3.08213,3244.5,3243.9,7.54324038]
[1737657888442,3.08213,3244.5,3244.0,0.03476793]
[1737657888767,2.98213,3244.5,3244.1,0.44953083]
[1737657888941,2.98213,3244.5,3244.2,0.03468569]
[1737657890333,6.58555443,3244.7,3244.2,0.03468569]
[1737657890553,3.08206,3244.6,3244.2,0.03468569]
[1737657890756,3.08228,3244.4,3244.2,0.03468569]
[1737657891064,3.08228,3244.4,3243.5,0.7787]
[1737657891065,3.08257,3244.1,3243.5,0.7787]
[1737657891268,3.08257,3244.1,3243.6,0.38618]
[1737657891269,3.12115547,3244.0,3243.6,0.38618]
[1737657891568,3.08273,3243.9,3243.6,0.032297]
[1737657893571,3.29949793,3244.1,3243.6,0.032297]
[1737657893768,3.08268,3244.0,3243.6,0.032297]
[1737657893929,3.08274,3243.9,3243.6,0.032297]
[1737657894135,3.0828,3243.8,3243.6,0.032297]
[1737657894360,3.08289,3243.7,3243.6,0.032297]
[1737657894563,3.08289,3243.7,3243.2,0.7808]
[1737657894564,0.03853989,3243.7,3243.2,0.7808]
[1737657894759,3.08302,3243.6,3243.2,0.7808]
[1737657894975,3.08302,3243.6,3243.3,0.03185619]
[1737657895172,3.29949793,3243.8,3243.2,0.7808]
[1737657895375,3.08384,3242.7,3242.4,0.7982]
[1737657895669,5.9659315,3242.5,3242.1,0.7982]
[1737657896459,3.08424,3242.3,3242.0,0.1657653]
[1737657896662,3.08442,3242.1,3242.0,0.1657653]
[1737657898615,6.59147797,3242.5,3242.0,0.1657653]
[1737657898900,3.08438,3242.2,3242.0,0.1657653]
[1737657899469,5.9662915,3242.2,3242.0,0.1657653]
[1737657899785,3.08442,3242.1,3242.0,0.1657653]
[1737657901852,3.50740797,3242.5,3242.1,3.8607]
[1737657902012,5.9653815,3243.1,3242.2,0.40264653]
[1737657902221,2.8818915,3243.1,3242.6,3.08387]
[1737657902575,5.9650815,3243.4,3242.8,3.08368]
[1737657902876,5.9654215,3243.1,3242.5,0.7763]
[1737657903017,3.08358,3243.0,3242.5,0.7763]
[1737657903218,3.08401,3242.6,3242.2,0.8094]
[1737657903418,3.08429,3242.3,3242.0,0.1657653]
[1737657903759,2.8818915,3242.1,3242.0,0.1657653]
[1737657904632,5.9663115,3242.1,3242.0,0.1657653]
[1737657904836,6.40283538,3242.1,3242.0,0.1657653]
[1737657905055,5.9663115,3242.1,3242.0,0.1657653]
[1737657905228,3.08439,3242.2,3242.0,0.1657653]
[1737657905931,3.08423,3242.3,3242.0,0.1657653]
[1737657906137,6.58413445,3242.4,3242.0,0.1657653]
[1737657906352,5.9657415,3242.7,3242.0,0.1657653]
[1737657906558,5.9657415,3242.7,3242.1,0.7588]
[1737657906728,6.16746,3242.9,3242.2,3.08429]
[1737657907056,3.08373,3242.9,3242.3,0.692742]
[1737657907261,2.8818915,3243.0,3242.3,0.692742]
[1737657907475,3.08367,3242.9,3242.3,3.776942]
[1737657907978,3.08381,3242.8,3242.3,0.692742]
[1737657908262,3.08386,3242.7,3242.3,0.692742]
[1737657909367,3.08367,3242.9,3242.3,0.692742]
[1737657909572,3.08377,3242.8,3242.4,0.3777032]
[1737657910123,3.08377,3242.8,3242.3,0.692742]
[1737657910525,3.08377,3242.8,3242.3,3.776962]
[1737657911563,3.08356,3243.0,3242.3,3.776962]
[1737657911865,3.08356,3243.0,3242.4,3.08413]
[1737657912267,4.12997974,3243.1,3242.6,0.755]
[1737657912565,6.59018214,3243.5,3242.6,1.138903]
[1737657912736,3.08338,3243.2,3242.6,1.138903]
[1737657912940,3.50701214,3243.1,3242.6,1.138903]
[1737657913143,3.50701214,3243.1,3242.3,0.7973]
[1737657913144,0.03854726,3243.0,3242.3,0.7973]
[1737657913450,3.0838,3242.8,3242.3,0.7973]
[1737657913851,0.43652388,3242.9,3242.3,0.7973]
[1737657914078,3.08308,3243.5,3242.3,0.7973]
[1737657914225,5.33,3245.9,3242.3,0.7973]
[1737657914226,3.70897428,3245.9,3245.3,3.08134]
[1737657914563,3.08072,3246.0,3245.3,0.7973]
[1737657914724,3.08091,3245.8,3244.8,0.7973]
[1737657914923,0.42326529,3245.6,3244.8,0.7973]
[1737657915130,0.43158306,3245.5,3244.8,0.7973]
[1737657915363,0.81633109,3245.5,3244.8,3.87914]
[1737657916290,0.3930658,3245.5,3244.8,3.87914]
[1737657916457,3.4739858,3245.8,3244.8,3.87914]
[1737657916652,0.34739858,3245.7,3244.8,3.87914]
[1737657916966,0.63092183,3245.6,3244.9,3.08172]
[1737657917179,0.34739858,3245.7,3244.9,3.08172]
[1737657917549,6.08072,3246.0,3244.9,3.08172]
[1737657917977,6.08072,3246.0,3245.0,3.08164]
[1737657918290,3.7593,3246.2,3244.8,0.7973]
[1737657918489,3.7593,3246.2,3245.3,3.08137]
[1737657919182,3.7593,3246.2,3245.1,3.08155]
[1737657919382,0.683974,3246.1,3245.3,3.08131]
[1737657919986,0.683974,3246.1,3245.4,3.08125]
[1737657920181,0.7593,3246.2,3244.8,0.7973]
[1737657920405,0.8314,3246.6,3245.2,3.08147]
[1737657920710,0.8314,3246.6,3245.8,3.08089]
[1737657920893,0.8314,3246.6,3245.3,0.7728]
[1737657921106,0.8314,3246.6,3245.3,0.80361006]
[1737657921287,0.8314,3246.6,3246.0,3.08068]
[1737657921496,1.45646549,3246.6,3246.0,3.08068]
[1737657921830,3.91126,3246.9,3246.0,3.08068]
[1737657922011,0.691126,3246.8,3246.0,3.08068]
[1737657922206,3.60737379,3246.7,3245.8,3.08089]
[1737657922388,0.0385103,3246.6,3245.8,3.08089]
[1737657923416,0.60737379,3246.7,3245.5,3.08118]
[1737657923578,0.691126,3246.8,3246.2,3.08052]
[1737657923783,0.691126,3246.8,3245.3,0.7728]
[1737657923784,3.07997,3246.8,3246.1,3.0806]
[1737657924008,0.60898689,3246.8,3246.1,3.0806]
[1737657925419,0.60898689,3246.8,3245.9,3.0808]
[1737657925926,0.60898689,3246.8,3246.1,3.08059]
[1737657926722,3.68900689,3246.8,3246.1,3.08059]
[1737657926921,3.08006,3246.7,3246.1,3.08059]
[1737657927082,0.36890469,3246.6,3246.1,3.08059]
[1737657929684,0.36890469,3246.6,3246.1,3.08055]
[1737657930008,3.44911469,3246.6,3245.9,3.0808]
[1737657930589,0.36890469,3246.6,3246.0,3.08069]
[1737657930817,0.36890469,3246.6,3246.1,3.08061]
[1737657930985,0.34489747,3246.5,3246.1,3.08061]
[1737657935849,3.42513747,3246.5,3245.4,3.0]
[1737657936010,3.08055,3246.2,3245.5,3.08118]
[1737657936413,0.34489747,3246.5,3245.8,3.0809]
[1737657936600,3.42289775,3246.4,3245.8,3.08082]
[1737657936800,3.42289775,3246.4,3245.9,3.0808]
[1737657936801,0.34250775,3246.4,3245.9,3.0808]
[1737657937144,0.34250775,3246.4,3246.0,3.08065]
[1737657937298,0.34250775,3246.4,3246.1,3.08061]
[1737657937929,0.34250775,3246.4,3246.2,3.08051]
[1737657938114,3.07998,3246.8,3246.2,6.16094]
[1737657938740,0.8314,3246.9,3246.4,3.08033]
[1737657938904,3.68505267,3247.1,3246.5,3.08017]
[1737657939608,3.07953,3247.3,3246.8,3.07995]
[1737657940339,0.62060506,3247.3,3246.2,3.08045]
[1737657940541,3.07993,3246.9,3246.3,3.08036]
[1737657940727,3.08003,3246.8,3246.2,3.08052]
[1737657940932,3.08006,3246.7,3246.1,3.87633]
[1737657941229,0.616009,3246.6,3246.1,3.87633]
[1737657941756,0.616009,3246.6,3246.2,3.08045]
[1737657941902,3.08003,3246.8,3246.3,3.08041]
[1737657942213,3.08003,3246.8,3246.2,3.08051]
[1737657944338,3.08003,3246.8,3246.1,3.87633]
[1737657944648,3.08003,3246.8,3246.3,3.08042]
[1737657945849,3.07961,3247.2,3246.7,3.08005]
[1737657946058,3.07961,3247.2,3246.7,3.07998]
[1737657946059,0.73875261,3247.2,3246.7,3.07998]
[1737657946216,6.687311,3247.4,3246.7,3.07998]
[1737657946424,6.687311,3247.4,3246.9,3.07984]
[1737657946425,3.607921,3247.4,3246.9,3.07984]
[1737657946634,3.607921,3247.4,3246.9,3.07977]
[1737657947035,3.607921,3247.4,3247.0,3.0797]
[1737657947951,3.70674286,3247.7,3247.1,3.07958]
[1737657948118,3.07913,3247.7,3247.1,3.07958]
[1737657948509,3.07875,3248.1,3247.5,3.07927]
[1737657948708,0.75,3248.2,3247.4,3.07938]
[1737657948709,3.07891,3248.0,3247.4,3.07938]
[1737657948911,0.307891,3247.9,3247.4,3.07938]
[1737657949112,0.307891,3247.9,3247.5,3.07929]